[Event "Queens Festival Final Team 2022"]
[Site "Tornelo"]
[Date "2022.06.26"]
[Round "7.1"]
[White "Song, Yuxin"]
[Black "Subramanian, Anusha"]
[Result "1-0"]
[ECO "C10"]
[WhiteElo "2317"]
[BlackElo "1671"]
[Annotator "TA"]
[PlyCount "105"]
[EventDate "2022.06.24"]
[EventType "team-tourn"]
[EventCountry "NET"]
[SourceTitle "playchess.com"]
[Source "ChessBase"]
[SourceQuality "1"]
[WhiteTeam "China"]
[BlackTeam "England"]
[WhiteTeamCountry "CHN"]
[BlackTeamCountry "ENG"]
[TimeControl "180+2"]

{[%evp 12,104,38,14,35,29,51,30,96,101,96,103,100,106,105,104,158,143,151,148,156,157,176,180,210,155,604,593,618,622,609,593,648,654,635,505,516,510,535,535,535,535,697,679,831,816,959,866,1125,771,753,744,29996,2031,29997,1389,1357,1147,1275,6099,6716,7080,29978,29979,29978,29979,29982,29983,29983,29984,29983,29984,29984,29985,29985,29986,29990,29991,29991,29992,29992,29993,29993,29994,29994,29994,29994,29995,29995,29995,29997,29997,29998,29999,29999]} 1. e4 {[%emt 0:00:02]} e6 {[%emt 0:00:05]} 2. d4 {[%emt 0:00:02]} d5 {[%emt 0:00:02]} 3. Nd2 {[%emt 0:00:01]} dxe4 {[%emt 0:00:02]} 4. Nxe4 {[%emt 0:00:01]} Nd7 {[%emt 0:00:01]} 5. Nf3 {[%emt 0:00:01]} Ngf6 {[%emt 0:00:02]} 6. Nxf6+ {[%emt 0:00:01]} Nxf6 {[%emt 0:00:01]} 7. Be3 {[%emt 0:00:01] 7.c3 is a critical line.} b6 {[%emt 0:00:05] C10: French with 3 Nc3: Unusual Black 3rd moves and 3...dxe4.} 8. Ne5 {[%emt 0:00:04]} a6 $1 {[%emt 0:00:11] Prevents Bb5+.} 9. Bd3 {[%emt 0:00:44] [#]} Bd6 $146 {[%emt 0:00:03]} (9... Bb7 $11 {keeps the balance.}) ({Predecessor:} 9... Bb7 10. c3 Nd7 11. Nxd7 Qxd7 12. Qg4 h5 13. Qg5 Qd5 14. Qxd5 Bxd5 {½-½ (14) Arzumanian,G (2446)-Maslak,K (2537) Pardubice 2006}) 10. Qf3 $16 {[%emt 0:00:06]} Rb8 {[%emt 0:00:48]} 11. Nc6 {[%emt 0:00:26][%csl LRb8,LRd8] White is much more active. The black rooks are badly placed.} Bb7 {[%emt 0:00:02] [#]} 12. Bxa6 $1 {[%emt 0:00:02][%cal Bd3a6,Ba6b5,Bb5c6][%mdl 32]} Bxc6 {[%emt 0:00:10]} 13. Qxc6+ {[%emt 0:00:02]} Qd7 {[%emt 0:00:07]} (13... Kf8 $142 14. O-O h5) 14. Bb5 $36 {[%emt 0:00:02][%mdl 2048] Qc4 is the strong threat. Keeping Black busy. This bishop pair is nice.} Qxc6 {[%emt 0:00:07]} 15. Bxc6+ {[%emt 0:00:02]} Ke7 {[%emt 0:00:01]} 16. c4 {[%emt 0:00:02] Against Nd5} Nd7 {[%emt 0:00:28]} 17. f4 {[%emt 0:00:09]} f5 {[%emt 0:00:14]} 18. Rg1 {[%emt 0:00:10]} Kf6 $2 {[%emt 0:00:07]} (18... Nf6 $16 19. O-O-O Kf7) 19. Bxd7 $18 {[%emt 0:00:02]} Rhd8 {[%emt 0:00:13]} 20. Bc6 {[%emt 0:00:02]} Bb4+ {[%emt 0:00:04]} 21. Ke2 {[%emt 0:00:01]} Rd6 {[%emt 0:00:06]} 22. d5 {[%emt 0:00:02]} exd5 {[%emt 0:00:04]} 23. Bxd5 {[%emt 0:00:01]} Re8 {[%emt 0:00:04]} 24. Kf3 {[%emt 0:00:02]} c6 {[%emt 0:00:30]} 25. Bd4+ {[%emt 0:00:02]} Kg6 {[%emt 0:00:05]} 26. Be5 {[%emt 0:00:01]} Rdd8 {[%emt 0:00:06]} 27. Bxc6 {[%emt 0:00:07]} Re6 {[%emt 0:00:01]} 28. Bd5 {[%emt 0:00:01]} Re7 {[%emt 0:00:02]} 29. Rgd1 {[%emt 0:00:02]} Bc5 {[%emt 0:00:03]} 30. g4 {[%emt 0:00:01]} fxg4+ {[%emt 0:00:02]} 31. Kxg4 {[%emt 0:00:01] [#] White threatens f5+ and mate.} Red7 {[%emt 0:00:02]} 32. f5+ {[%emt 0:00:03]} Kh6 {[%emt 0:00:02]} 33. Bf4+ {[%emt 0:00:01]} (33. Rd3 $142 Be3 34. Rxe3 Rh8 35. Rh3#) 33... g5 {[%emt 0:00:02]} 34. Bxg5+ {[%emt 0:00:01]} Kg7 {[%emt 0:00:02]} 35. Bxd8 {[%emt 0:00:02]} Rxd8 {[%emt 0:00:00]} 36. Be6 {[%emt 0:00:01]} Rd4+ {[%emt 0:00:03]} 37. Rxd4 {[%emt 0:00:01] White mates.} Bxd4 {[%emt 0:00:00]} 38. Rd1 {[%emt 0:00:02]} Bxb2 {[%emt 0:00:02]} 39. Rd7+ {[%emt 0:00:01]} Kf6 {[%emt 0:00:02]} 40. Rxh7 {[%emt 0:00:02]} Ke5 {[%emt 0:00:01]} 41. Rf7 {[%emt 0:00:01]} Bd4 {[%emt 0:00:01]} 42. h4 {[%emt 0:00:01]} Bc5 {[%emt 0:00:02]} 43. h5 {[%emt 0:00:01]} Kd4 {[%emt 0:00:01]} 44. h6 {[%emt 0:00:01]} Kc3 {[%emt 0:00:02]} 45. h7 {[%emt 0:00:01]} Bd4 {[%emt 0:00:01]} 46. f6 {[%emt 0:00:01]} Kb2 {[%emt 0:00:02]} 47. h8=Q {[%emt 0:00:02]} Kxa2 {[%emt 0:00:01]} 48. Qh3 {[%emt 0:00:01]} Kb2 {[%emt 0:00:02]} 49. Rd7 {[%emt 0:00:02]} Bc3 {[%emt 0:00:02]} 50. Rd3 {[%emt 0:00:01]} Bxf6 {[%emt 0:00:02]} 51. Rb3+ {[%emt 0:00:02]} Kc2 {[%emt 0:00:02]} 52. Qd3+ {[%emt 0:00:01]} Kc1 {[%emt 0:00:01]} 53. Rb1# {[%emt 0:00:01] White took control after the opening.  Weighted Error Value: White=0.13 (very precise) /Black=0.54} 1-0

[Event "Queens Festival Final Team 2022"]
[Site "Tornelo"]
[Date "2022.06.26"]
[Round "7.1"]
[White "Grigoryan, Meri"]
[Black "Hong, Xing"]
[Result "1/2-1/2"]
[ECO "B14"]
[WhiteElo "1993"]
[BlackElo "1999"]
[Annotator "NA RC"]
[PlyCount "57"]
[EventDate "2022.06.24"]
[EventType "team-tourn"]
[EventCountry "NET"]
[SourceTitle "playchess.com"]
[Source "ChessBase"]
[SourceQuality "1"]
[WhiteTeam "England"]
[BlackTeam "China"]
[WhiteTeamCountry "ENG"]
[BlackTeamCountry "CHN"]
[TimeControl "180+2"]

1. d4 {[%emt 0:00:06]} Nf6 {[%emt 0:00:04]} 2. c4 {[%emt 0:00:02]} c5 {[%emt 0:00:01]} 3. e3 {[%emt 0:00:01]} cxd4 {[%emt 0:00:02]} 4. exd4 {[%emt 0:00:02]} e6 {[%emt 0:00:00]} 5. Nf3 {[%emt 0:00:01]} d5 {[%emt 0:00:02]} 6. cxd5 {[%emt 0:00:03]} exd5 {[%emt 0:00:06]} 7. Nc3 {[%emt 0:00:02]} Be7 {[%emt 0:00:03]} 8. Bb5+ {[%emt 0:00:03]} Bd7 {[%emt 0:00:07]} 9. Bxd7+ {[%emt 0:00:02]} Nbxd7 {[%emt 0:00:02]} 10. O-O {[%emt 0:00:02]} O-O {[%emt 0:00:01]} 11. Re1 {[%emt 0:00:02]} Re8 {[%emt 0:00:06]} 12. Bf4 {[%emt 0:00:01]} h6 {[%emt 0:00:02]} 13. Ne5 {[%emt 0:00:03]} Bf8 {[%emt 0:00:08]} 14. Qf3 {[%emt 0:00:08]} Nb6 {[%emt 0:00:14]} 15. Rad1 {[%emt 0:00:03]} Rc8 {[%emt 0:00:05]} 16. g4 {[%emt 0:00:35]} Nc4 {[%emt 0:00:28]} 17. Nxc4 {[%emt 0:00:52]} Rxe1+ {[%emt 0:00:04]} 18. Rxe1 {[%emt 0:00:03]} Rxc4 {[%emt 0:00:04]} 19. g5 {[%emt 0:00:20]} Ne4 {[%emt 0:00:08]} 20. gxh6 {[%emt 0:00:06]} Rxd4 {[%emt 0:00:14]} 21. hxg7 {[%emt 0:00:08]} Bxg7 {[%emt 0:00:01]} 22. Nxe4 {[%emt 0:00:15]} dxe4 {[%emt 0:00:02]} 23. Rxe4 {[%emt 0:00:01]} Rxe4 {[%emt 0:00:10]} 24. Qxe4 {[%emt 0:00:02]} Qd1+ {[%emt 0:00:02]} 25. Kg2 {[%emt 0:00:04]} Qg4+ {[%emt 0:00:01]} 26. Kf1 {[%emt 0:00:07]} Qd1+ {[%emt 0:00:02]} 27. Kg2 {[%emt 0:00:18]} Qg4+ {[%emt 0:00:02]} 28. Kf1 {[%emt 0:00:04]} Qd1+ {[%emt 0:00:07]} 29. Kg2 {[%emt 0:00:02]} 1/2-1/2

[Event "Queens Festival Final Team 2022"]
[Site "Tornelo"]
[Date "2022.06.26"]
[Round "7.1"]
[White "Cui, Wen"]
[Black "Posadas, Rayelynn"]
[Result "1/2-1/2"]
[ECO "B41"]
[WhiteElo "1718"]
[BlackElo "1648"]
[Annotator "NA RC"]
[PlyCount "110"]
[EventDate "2022.06.24"]
[EventType "team-tourn"]
[EventCountry "NET"]
[SourceTitle "playchess.com"]
[Source "ChessBase"]
[SourceQuality "1"]
[WhiteTeam "China"]
[BlackTeam "England"]
[WhiteTeamCountry "CHN"]
[BlackTeamCountry "ENG"]
[TimeControl "180+2"]

1. e4 {[%emt 0:00:02]} c5 {[%emt 0:00:04]} 2. Nf3 {[%emt 0:00:02]} e6 {[%emt 0:00:02]} 3. d4 {[%emt 0:00:01]} cxd4 {[%emt 0:00:01]} 4. Nxd4 {[%emt 0:00:02]} a6 {[%emt 0:00:03]} 5. c4 {[%emt 0:00:02]} Nf6 {[%emt 0:00:04]} 6. Nc3 {[%emt 0:00:02]} Bc5 {[%emt 0:00:02]} 7. Be2 {[%emt 0:00:07]} d6 {[%emt 0:00:06]} 8. Be3 {[%emt 0:00:04]} O-O {[%emt 0:00:03]} 9. O-O {[%emt 0:00:02]} Nc6 {[%emt 0:00:04]} 10. Nxc6 {[%emt 0:00:13]} bxc6 {[%emt 0:00:00]} 11. Bxc5 {[%emt 0:00:02]} dxc5 {[%emt 0:00:02]} 12. Na4 {[%emt 0:00:21]} Qe7 {[%emt 0:00:05]} 13. Qc2 {[%emt 0:00:12]} e5 {[%emt 0:00:10]} 14. b3 {[%emt 0:00:05]} Be6 {[%emt 0:00:02]} 15. Rad1 {[%emt 0:00:07]} Rfd8 {[%emt 0:00:03]} 16. Rxd8+ {[%emt 0:00:16]} Rxd8 {[%emt 0:00:03]} 17. f3 {[%emt 0:00:03]} Rd4 {[%emt 0:00:09]} 18. Nc3 {[%emt 0:00:12]} Qd7 {[%emt 0:00:11]} 19. Rd1 {[%emt 0:00:02]} Rxd1+ {[%emt 0:00:11]} 20. Bxd1 {[%emt 0:00:16]} Qd4+ {[%emt 0:00:01]} 21. Kf1 {[%emt 0:00:15]} Nh5 {[%emt 0:00:12]} 22. Ne2 {[%emt 0:00:07]} Qd6 {[%emt 0:00:14]} 23. Qc1 {[%emt 0:00:12]} h6 {[%emt 0:00:12]} 24. Bc2 {[%emt 0:00:02]} f6 {[%emt 0:00:24]} 25. Qd1 {[%emt 0:00:03]} Qxd1+ {[%emt 0:00:11]} 26. Bxd1 {[%emt 0:00:03]} g5 {[%emt 0:00:01]} 27. g3 {[%emt 0:00:08]} f5 {[%emt 0:00:09]} 28. Bc2 {[%emt 0:00:06]} f4 {[%emt 0:00:02]} 29. Kf2 {[%emt 0:00:02]} Kf7 {[%emt 0:00:07]} 30. Nc1 {[%emt 0:00:07]} Ke7 {[%emt 0:00:05]} 31. Nd3 {[%emt 0:00:03]} Kd6 {[%emt 0:00:02]} 32. a3 {[%emt 0:00:08]} Ng7 {[%emt 0:00:03]} 33. g4 {[%emt 0:00:14]} Bf7 {[%emt 0:00:03]} 34. Bd1 {[%emt 0:00:03]} Ne6 {[%emt 0:00:02]} 35. Kf1 {[%emt 0:00:09]} Nd4 {[%emt 0:00:03]} 36. Kf2 {[%emt 0:00:03]} a5 {[%emt 0:00:05]} 37. a4 {[%emt 0:00:02]} h5 {[%emt 0:00:14]} 38. h3 {[%emt 0:00:02]} hxg4 {[%emt 0:00:07]} 39. hxg4 {[%emt 0:00:02]} Bg6 {[%emt 0:00:07]} 40. Kf1 {[%emt 0:00:03]} Ne6 {[%emt 0:00:08]} 41. Kf2 {[%emt 0:00:02]} Nd8 {[%emt 0:00:04]} 42. Kf1 {[%emt 0:00:03]} Nb7 {[%emt 0:00:01]} 43. Ke2 {[%emt 0:00:06]} Nd8 {[%emt 0:00:02]} 44. Kf1 {[%emt 0:00:02]} Ne6 {[%emt 0:00:01]} 45. Ke2 {[%emt 0:00:03]} Nc7 {[%emt 0:00:01]} 46. Kf1 {[%emt 0:00:02]} Na6 {[%emt 0:00:01]} 47. Ke2 {[%emt 0:00:01]} Nb4 {[%emt 0:00:01]} 48. Kd2 {[%emt 0:00:02]} Bf7 {[%emt 0:00:08]} 49. Kc3 {[%emt 0:00:05]} Na2+ {[%emt 0:00:02]} 50. Kd2 {[%emt 0:00:01]} Nb4 {[%emt 0:00:11]} 51. Kc3 {[%emt 0:00:02]} Na6 {[%emt 0:00:06]} 52. Kd2 {[%emt 0:00:02]} Nc7 {[%emt 0:00:02]} 53. Kc3 {[%emt 0:00:03]} Na6 {[%emt 0:00:02]} 54. Kd2 {[%emt 0:00:01]} Nc7 {[%emt 0:00:02]} 55. Kc3 {[%emt 0:00:01]} Na6 {[%emt 0:00:01]} 1/2-1/2

[Event "Queens Festival Final Team 2022"]
[Site "Tornelo"]
[Date "2022.06.26"]
[Round "7.1"]
[White "Catabay, Mae Katelyn Rose"]
[Black "Jiang, Tianyu"]
[Result "0-1"]
[ECO "B49"]
[WhiteElo "1321"]
[BlackElo "1502"]
[Annotator "NA RC"]
[PlyCount "28"]
[EventDate "2022.06.24"]
[EventType "team-tourn"]
[EventCountry "NET"]
[SourceTitle "playchess.com"]
[Source "ChessBase"]
[SourceQuality "1"]
[WhiteTeam "England"]
[BlackTeam "China"]
[WhiteTeamCountry "ENG"]
[BlackTeamCountry "CHN"]
[TimeControl "180+2"]

1. e4 {[%emt 0:00:02]} c5 {[%emt 0:00:04]} 2. Nf3 {[%emt 0:00:02]} e6 {[%emt 0:00:01]} 3. d4 {[%emt 0:00:02]} cxd4 {[%emt 0:00:01]} 4. Nxd4 {[%emt 0:00:01]} Nc6 {[%emt 0:00:00]} 5. Nc3 {[%emt 0:00:03]} Qc7 {[%emt 0:00:02]} 6. Be3 {[%emt 0:00:06]} a6 {[%emt 0:00:02]} 7. Be2 {[%emt 0:00:02]} Nf6 {[%emt 0:00:01]} 8. O-O {[%emt 0:00:03]} Bb4 {[%emt 0:00:01]} 9. f3 {[%emt 0:00:03]} Bxc3 {[%emt 0:00:14]} 10. bxc3 {[%emt 0:00:02]} d5 {[%emt 0:00:00]} 11. Bd3 {[%emt 0:00:15]} dxe4 {[%emt 0:00:40]} 12. fxe4 {[%emt 0:00:04]} Ne5 {[%emt 0:00:02]} 13. Qd2 {[%emt 0:00:22]} Neg4 {[%emt 0:00:17]} 14. c4 {[%emt 0:00:19]} Qxh2# {[%emt 0:00:05]} 0-1

[Event "Queens Festival Final Team 2022"]
[Site "Tornelo"]
[Date "2022.06.26"]
[Round "7.2"]
[White "Davari, Sara"]
[Black "Perez, Dalila"]
[Result "1-0"]
[ECO "C01"]
[WhiteElo "1674"]
[BlackElo "1799"]
[Annotator "NA RC"]
[PlyCount "31"]
[EventDate "2022.06.24"]
[EventType "team-tourn"]
[EventCountry "NET"]
[SourceTitle "playchess.com"]
[Source "ChessBase"]
[SourceQuality "1"]
[WhiteTeam "Iran"]
[BlackTeam "Paraguay"]
[WhiteTeamCountry "IRI"]
[BlackTeamCountry "PAR"]
[TimeControl "180+2"]

1. e4 {[%emt 0:00:02]} e6 {[%emt 0:00:05]} 2. d4 {[%emt 0:00:02]} d5 {[%emt 0:00:01]} 3. Nc3 {[%emt 0:00:01]} Bb4 {[%emt 0:00:03]} 4. exd5 {[%emt 0:00:01]} exd5 {[%emt 0:00:03]} 5. Bd3 {[%emt 0:00:01]} Nc6 {[%emt 0:00:03]} 6. Nge2 {[%emt 0:00:05]} Nge7 {[%emt 0:00:03]} 7. O-O {[%emt 0:00:02]} Bf5 {[%emt 0:00:01]} 8. Bf4 {[%emt 0:00:05]} Qd7 {[%emt 0:00:08]} 9. Ng3 {[%emt 0:00:06]} Bxd3 {[%emt 0:00:02]} 10. Qxd3 {[%emt 0:00:02]} O-O-O {[%emt 0:00:03]} 11. a3 {[%emt 0:00:08]} Bd6 {[%emt 0:00:02]} 12. Bxd6 {[%emt 0:00:03]} Qxd6 {[%emt 0:00:00]} 13. b4 {[%emt 0:00:10]} Rdg8 {[%emt 0:00:05]} 14. Nf5 {[%emt 0:00:22]} Kb8 {[%emt 0:00:17]} 15. Nxd6 {[%emt 0:00:09]} cxd6 {[%emt 0:00:05]} 16. b5 {[%emt 0:00:02]} 1-0

[Event "Queens Festival Final Team 2022"]
[Site "Tornelo"]
[Date "2022.06.26"]
[Round "7.2"]
[White "Mayeregger Gonzalez, Renata"]
[Black "Khezrian, Nooralzahra"]
[Result "0-1"]
[ECO "C45"]
[WhiteElo "1461"]
[BlackElo "1269"]
[Annotator "NA RC"]
[PlyCount "120"]
[EventDate "2022.06.24"]
[EventType "team-tourn"]
[EventCountry "NET"]
[SourceTitle "playchess.com"]
[Source "ChessBase"]
[SourceQuality "1"]
[WhiteTeam "Paraguay"]
[BlackTeam "Iran"]
[WhiteTeamCountry "PAR"]
[BlackTeamCountry "IRI"]
[TimeControl "180+2"]

1. e4 {[%emt 0:00:02]} e5 {[%emt 0:00:04]} 2. Nf3 {[%emt 0:00:03]} Nc6 {[%emt 0:00:01]} 3. d4 {[%emt 0:00:08]} exd4 {[%emt 0:00:02]} 4. Nxd4 {[%emt 0:00:03]} Bc5 {[%emt 0:00:02]} 5. Nxc6 {[%emt 0:00:04]} Qf6 {[%emt 0:00:01]} 6. Qf3 {[%emt 0:00:04]} dxc6 {[%emt 0:00:02]} 7. Nc3 {[%emt 0:00:02]} Be6 {[%emt 0:00:04]} 8. Qg3 {[%emt 0:00:05]} O-O-O {[%emt 0:00:02]} 9. Bd3 {[%emt 0:00:07]} h5 {[%emt 0:00:13]} 10. Bg5 {[%emt 0:00:07]} Qg6 {[%emt 0:00:04]} 11. Bxd8 {[%emt 0:00:07]} Qxg3 {[%emt 0:00:02]} 12. fxg3 {[%emt 0:00:10]} Kxd8 {[%emt 0:00:02]} 13. O-O-O {[%emt 0:00:04]} Kc8 {[%emt 0:00:04]} 14. Kb1 {[%emt 0:00:03]} Nf6 {[%emt 0:00:01]} 15. a3 {[%emt 0:00:04]} Ng4 {[%emt 0:00:02]} 16. b4 {[%emt 0:00:33]} Bd4 {[%emt 0:00:04]} 17. Ne2 {[%emt 0:00:03]} Bb6 {[%emt 0:00:11]} 18. c4 {[%emt 0:00:08]} a6 {[%emt 0:00:04]} 19. c5 {[%emt 0:00:01]} Ba7 {[%emt 0:00:03]} 20. Rdf1 {[%emt 0:00:08]} Ne3 {[%emt 0:00:03]} 21. Rf3 {[%emt 0:00:10]} Nxg2 {[%emt 0:00:04]} 22. Rg1 {[%emt 0:00:07]} Bh3 {[%emt 0:00:07]} 23. Nf4 {[%emt 0:00:05]} Nxf4 {[%emt 0:00:03]} 24. Rxf4 {[%emt 0:00:10]} f6 {[%emt 0:00:02]} 25. Be2 {[%emt 0:00:06]} b6 {[%emt 0:00:08]} 26. Bxa6+ {[%emt 0:00:13]} Kd8 {[%emt 0:00:08]} 27. Rd1+ {[%emt 0:00:02]} Ke7 {[%emt 0:00:02]} 28. cxb6 {[%emt 0:00:09]} Bxb6 {[%emt 0:00:08]} 29. Be2 {[%emt 0:00:03]} Be3 {[%emt 0:00:05]} 30. Rf3 {[%emt 0:00:07]} Bg5 {[%emt 0:00:11]} 31. Rc3 {[%emt 0:00:08]} Bd7 {[%emt 0:00:07]} 32. a4 {[%emt 0:00:11]} Rb8 {[%emt 0:00:02]} 33. Rb3 {[%emt 0:00:09]} f5 {[%emt 0:00:08]} 34. exf5 {[%emt 0:00:18]} Bxf5+ {[%emt 0:00:02]} 35. Bd3 {[%emt 0:00:01]} Be6 {[%emt 0:00:04]} 36. Rb2 {[%emt 0:00:02]} Bf6 {[%emt 0:00:02]} 37. Re2 {[%emt 0:00:02]} Rxb4+ {[%emt 0:00:02]} 38. Kc2 {[%emt 0:00:03]} Rb2+ {[%emt 0:00:02]} 39. Kc1 {[%emt 0:00:04]} Rb3 {[%emt 0:00:12]} 40. Rde1 {[%emt 0:00:01]} Rxd3 {[%emt 0:00:08]} 41. Rxe6+ {[%emt 0:00:02]} Kf7 {[%emt 0:00:01]} 42. a5 {[%emt 0:00:01]} Bg5+ {[%emt 0:00:03]} 43. Kc2 {[%emt 0:00:03]} Ra3 {[%emt 0:00:03]} 44. Kb2 {[%emt 0:00:01]} Rxa5 {[%emt 0:00:02]} 45. R6e4 {[%emt 0:00:02]} Rb5+ {[%emt 0:00:02]} 46. Kc2 {[%emt 0:00:03]} Bf6 {[%emt 0:00:01]} 47. Kd3 {[%emt 0:00:01]} Rb3+ {[%emt 0:00:01]} 48. Ke2 {[%emt 0:00:01]} Rb2+ {[%emt 0:00:04]} 49. Kf3 {[%emt 0:00:02]} Rxh2 {[%emt 0:00:01]} 50. Rc4 {[%emt 0:00:01]} Ra2 {[%emt 0:00:08]} 51. Rxc6 {[%emt 0:00:01]} Ra7 {[%emt 0:00:01]} 52. Rec1 {[%emt 0:00:02]} Be5 {[%emt 0:00:03]} 53. Ke4 {[%emt 0:00:02]} Bd6 {[%emt 0:00:01]} 54. Kf3 {[%emt 0:00:03]} Ra3+ {[%emt 0:00:04]} 55. R1c3 {[%emt 0:00:01]} Ra4 {[%emt 0:00:03]} 56. R6c4 {[%emt 0:00:05]} Ra1 {[%emt 0:00:01]} 57. g4 {[%emt 0:00:02]} h4 {[%emt 0:00:04]} 58. g5 {[%emt 0:00:04]} h3 {[%emt 0:00:02]} 59. Rc1 {[%emt 0:00:04]} Ra3+ {[%emt 0:00:04]} 60. R4c3 {[%emt 0:00:02]} Ra2 {[%emt 0:00:03]} 0-1

[Event "Queens Festival Final Team 2022"]
[Site "Tornelo"]
[Date "2022.06.26"]
[Round "7.2"]
[White "Mayeregger Gonzalez, Fiorella"]
[Black "Masoumi, Sahar"]
[Result "0-1"]
[ECO "A25"]
[WhiteElo "1284"]
[BlackElo "2004"]
[Annotator "NA RC"]
[PlyCount "54"]
[EventDate "2022.06.24"]
[EventType "team-tourn"]
[EventCountry "NET"]
[SourceTitle "playchess.com"]
[Source "ChessBase"]
[SourceQuality "1"]
[WhiteTeam "Paraguay"]
[BlackTeam "Iran"]
[WhiteTeamCountry "PAR"]
[BlackTeamCountry "IRI"]
[TimeControl "180+2"]

1. Nf3 {[%emt 0:00:02]} Nf6 {[%emt 0:00:05]} 2. c4 {[%emt 0:00:03]} g6 {[%emt 0:00:01]} 3. e3 {[%emt 0:00:02]} Bg7 {[%emt 0:00:01]} 4. d4 {[%emt 0:00:02]} O-O {[%emt 0:00:02]} 5. Nc3 {[%emt 0:00:04]} d6 {[%emt 0:00:01]} 6. Be2 {[%emt 0:00:03]} Nc6 {[%emt 0:00:03]} 7. O-O {[%emt 0:00:02]} e5 {[%emt 0:00:02]} 8. dxe5 {[%emt 0:00:08]} dxe5 {[%emt 0:00:03]} 9. e4 {[%emt 0:00:08]} h6 {[%emt 0:00:05]} 10. Nd5 {[%emt 0:00:02]} Be6 {[%emt 0:00:04]} 11. b3 {[%emt 0:00:06]} Nxe4 {[%emt 0:00:08]} 12. Bb2 {[%emt 0:00:11]} Re8 {[%emt 0:00:09]} 13. Qd3 {[%emt 0:00:13]} Bf5 {[%emt 0:00:10]} 14. Qd1 {[%emt 0:00:08]} Nc5 {[%emt 0:00:10]} 15. Ba3 {[%emt 0:00:15]} Ne6 {[%emt 0:00:04]} 16. Re1 {[%emt 0:00:19]} e4 {[%emt 0:00:02]} 17. Nd2 {[%emt 0:00:14]} Ned4 {[%emt 0:00:07]} 18. Rc1 {[%emt 0:00:08]} Ne5 {[%emt 0:00:06]} 19. Bb2 {[%emt 0:00:16]} Nxe2+ {[%emt 0:00:08]} 20. Rxe2 {[%emt 0:00:26]} Bg4 {[%emt 0:00:06]} 21. f3 {[%emt 0:00:01]} exf3 {[%emt 0:00:04]} 22. gxf3 {[%emt 0:00:03]} Nxf3+ {[%emt 0:00:12]} 23. Nxf3 {[%emt 0:00:08]} Bxf3 {[%emt 0:00:29]} 24. Rxe8+ {[%emt 0:00:10]} Qxe8 {[%emt 0:00:01]} 25. Qxf3 {[%emt 0:00:08]} Bxb2 {[%emt 0:00:03]} 26. Rf1 {[%emt 0:00:03]} Qe6 {[%emt 0:00:13]} 27. Nxc7 {[%emt 0:00:10]} Qb6+ {[%emt 0:00:02]} 0-1